bitfinex-derivatives/quotes_BNBF0:USTF0_20241225
["timestamp","ask_amount","ask_price","bid_price","bid_amount"]
[1735156099787,0.28412723,703.91,702.75,0.28459622]
[1735156110090,0.28412723,703.91,702.79,1.27257461]
[1735156110293,0.28412723,703.91,702.8,0.28457598]
[1735156113717,1.06225505,704.68,702.8,0.28457598]
[1735156113916,0.26125866,704.67,702.8,0.28457598]
[1735156114122,0.26125866,704.66,702.8,0.28457598]
[1735156114321,0.26125866,704.65,702.8,0.28457598]
[1735156114504,0.26125866,704.64,702.8,0.28457598]
[1735156114708,0.26125866,704.63,702.8,0.28457598]
[1735156114910,0.26125866,704.62,702.8,0.28457598]
[1735156115109,0.26125866,704.61,702.8,0.28457598]
[1735156115308,0.26125866,704.6,702.8,0.28457598]
[1735156115513,0.26125866,704.59,702.8,0.28457598]
[1735156115705,0.26125866,704.58,702.8,0.28457598]
[1735156115902,0.26125866,704.57,702.8,0.28457598]
[1735156116105,0.26125866,704.56,702.8,0.28457598]
[1735156116402,0.28387316,704.54,702.8,0.28457598]
[1735156116600,0.26125866,704.53,702.8,0.28457598]
[1735156117101,0.28388525,704.51,702.8,0.28457598]
[1735156117301,0.26125866,704.5,702.8,0.28457598]
[1735156117498,0.28389734,704.48,702.8,0.28457598]
[1735156117699,0.26125866,704.47,702.8,0.28457598]
[1735156117899,0.28390943,704.45,702.8,0.28457598]
[1735156118099,0.26125866,704.44,702.8,0.28457598]
[1735156118300,0.28391749,704.43,702.8,0.28457598]
[1735156118603,0.26125866,704.42,702.8,0.28457598]
[1735156118797,0.28392555,704.41,702.8,0.28457598]
[1735156118996,1.06225505,704.37,702.8,0.28457598]
[1735156119303,0.54521174,704.36,702.8,0.28457598]
[1735156119503,0.54521578,704.35,702.8,0.28457598]
[1735156119802,0.54522195,704.34,702.81,1.27257461]
[1735156120098,0.54522598,704.33,702.82,0.28456788]
[1735156120302,0.54523001,704.32,702.82,0.28456788]
[1735156120500,0.54523404,704.31,702.82,0.28456788]
[1735156120703,0.54523807,704.3,702.82,0.28456788]
[1735156121003,0.54524211,704.29,702.82,0.28456788]
[1735156121202,0.26126818,704.28,702.82,0.28456788]
[1735156121398,0.28398199,704.27,702.82,0.28456788]
[1735156122005,0.26127092,704.26,702.82,0.28456788]
[1735156122198,0.28398199,704.27,702.82,0.28456788]
[1735156123000,0.28398199,704.27,702.82,1.55714249]
[1735156123806,0.28398199,704.27,702.83,1.27257461]
[1735156124106,0.28398199,704.27,702.84,0.28455978]
[1735156124698,0.28398199,704.27,702.84,1.55713439]
[1735156125603,0.26127205,704.26,702.84,1.55713439]
[1735156125803,0.28398199,704.27,702.84,1.55713439]
[1735156127407,0.28398199,704.27,702.86,1.27257461]
[1735156128208,0.28398199,704.27,702.84,0.28455978]
[1735156131814,0.28398199,704.27,702.89,1.27257461]
[1735156132013,0.28398199,704.27,702.9,0.28453549]
[1735156132813,0.28398199,704.27,703.09,1.05824167]
[1735156133613,0.28398199,704.27,703.05,1.05824167]
[1735156134412,0.28398199,704.27,703.06,1.05824167]
[1735156135213,0.28398199,704.27,703.0,1.05824167]
[1735156135413,0.28398199,704.27,703.01,0.28449097]
[1735156137717,0.28398199,704.27,703.03,1.05824167]
[1735156139724,0.28398199,704.27,703.01,0.28449097]
[1735156140320,0.28398199,704.27,703.01,1.34273264]
[1735156141023,0.28398199,704.27,703.01,0.28449097]
[1735156163341,0.28398199,704.27,703.01,1.34273264]
[1735156164349,0.28398199,704.27,703.03,1.05824167]
[1735156165050,0.28398199,704.27,703.04,0.28447883]
[1735156167853,0.28398199,704.27,703.04,1.3427205]
[1735156168853,0.28398199,704.27,703.05,1.05824167]
[1735156169053,0.28398199,704.27,703.06,0.28447074]
[1735156170252,0.28398199,704.27,703.22,1.05824167]
[1735156170853,0.28398199,704.27,703.21,1.05824167]
[1735156171756,0.28398199,704.27,703.16,1.05824167]
[1735156172654,0.28398199,704.27,703.2,1.05824167]
[1735156173860,0.28398199,704.27,703.19,1.05824167]
[1735156174755,0.28398199,704.27,703.18,1.05824167]
[1735156175661,0.28398199,704.27,703.11,1.05824167]
[1735156176357,0.28398199,704.27,703.08,1.05824167]
[1735156177559,0.28398199,704.27,703.09,0.2844586]
[1735156181958,0.28398199,704.27,703.09,1.34270027]
[1735156182861,0.28398199,704.27,703.1,1.05824167]
[1735156183058,0.28398199,704.27,703.11,0.28445051]
[1735156184568,0.28398199,704.27,703.12,1.05824167]
[1735156184763,0.28398199,704.27,703.13,0.28444242]
[1735156185862,0.28398199,704.27,703.24,1.05824167]
[1735156187469,0.28398199,704.27,703.22,1.05824167]
[1735156188570,0.28398199,704.27,703.31,1.05824167]
[1735156189570,0.28398199,704.27,703.3,1.05824167]
[1735156190269,0.28398199,704.27,703.31,1.05824167]
[1735156193172,0.28398199,704.27,703.29,1.05824167]
[1735156195166,0.28398199,704.27,703.28,1.05824167]
[1735156196272,0.28398199,704.27,703.22,1.05824167]
[1735156198267,0.28398199,704.27,703.19,1.05824167]
[1735156199073,0.28398199,704.27,703.16,1.05824167]
[1735156199874,0.28398199,704.27,703.13,0.28444242]
[1735156200769,1.06225505,704.92,703.13,0.28444242]
[1735156200969,0.26115553,704.91,703.13,0.28444242]
[1735156201172,1.06225505,704.85,703.13,0.28444242]
[1735156201375,0.26115553,704.84,703.13,0.28444242]
[1735156201577,0.28375636,704.83,703.13,0.28444242]
[1735156201776,0.26115553,704.82,703.13,0.28444242]
[1735156201971,0.28376844,704.8,703.13,0.28444242]
[1735156202176,0.26115553,704.79,703.13,0.28444242]
[1735156202375,0.28377649,704.78,703.13,0.28444242]
[1735156202576,0.26115553,704.77,703.13,0.28444242]
[1735156202978,0.28378455,704.76,703.15,1.05824167]
[1735156203172,0.26113602,704.75,703.16,0.28443028]
[1735156203375,0.2837926,704.74,703.16,0.28443028]
[1735156203575,0.26113602,704.73,703.16,0.28443028]
[1735156203777,0.26113602,704.73,703.16,1.34267195]
[1735156204673,0.26113602,704.73,703.17,1.05824167]
[1735156205179,0.2837926,704.74,703.17,1.05824167]
[1735156205380,0.26112849,704.73,703.17,1.05824167]
[1735156205772,0.26112849,704.73,703.18,0.28442219]
[1735156205973,0.28380065,704.72,703.18,1.34266386]
[1735156206373,0.26113376,704.71,703.18,1.34266386]
[1735156206779,0.28380871,704.7,703.21,1.05824167]
[1735156207179,0.28380871,704.7,703.21,1.34265173]
[1735156208079,0.28380871,704.7,703.21,0.28441006]
[1735156213883,0.26114207,704.69,703.21,0.28441006]
[1735156214183,0.54495318,704.68,703.21,0.28441006]
[1735156214382,0.28382079,704.67,703.21,0.28441006]
[1735156214681,0.28382079,704.67,703.21,1.34265173]
[1735156215282,0.28382079,704.67,703.23,1.05824167]
[1735156216979,0.28382079,704.67,703.26,1.05824167]
[1735156217774,0.26113548,704.66,703.22,1.05824167]
[1735156217979,0.28382885,704.65,703.22,1.05824167]
[1735156218880,0.28382885,704.65,703.25,1.05824167]
[1735156219477,0.26113022,704.64,703.25,1.05824167]
[1735156219684,0.2838369,704.63,703.25,1.05824167]
[1735156219883,0.2838369,704.63,703.3,1.05824167]
[1735156220686,0.2838369,704.63,703.35,1.05824167]
[1735156221184,0.26113124,704.62,703.35,1.05824167]
[1735156221585,0.26113124,704.62,703.21,0.28441006]
[1735156221586,0.26113124,704.62,703.34,1.05824167]
[1735156222485,0.28384496,704.61,703.32,1.05824167]
[1735156222681,0.26113124,704.6,703.32,1.05824167]
[1735156222980,0.28385302,704.59,703.32,1.05824167]
[1735156223488,0.28385302,704.59,703.21,0.28441006]
[1735156223489,0.28385302,704.59,703.3,1.05824167]
[1735156224283,0.26114912,704.58,703.3,1.05824167]
[1735156224482,0.26114912,704.58,703.31,1.05824167]
[1735156224781,0.28385302,704.59,703.31,1.05824167]
[1735156226087,0.28385302,704.59,703.3,1.05824167]
[1735156227282,0.28385302,704.59,703.29,1.05824167]
[1735156228289,0.28385302,704.59,703.21,0.28441006]
[1735156241598,0.28385302,704.59,702.34,1.05824167]
[1735156241794,0.28385302,704.59,702.44,0.28472182]
[1735156242903,0.28385302,704.59,702.58,1.05824167]
[1735156243803,0.28385302,704.59,702.59,1.05824167]
[1735156244406,0.26121418,704.58,702.61,0.28465293]
[1735156244602,0.54507376,704.57,702.61,0.28465293]
[1735156244809,0.54507779,704.56,702.61,0.28465293]
[1735156245106,0.54508182,704.55,702.61,0.28465293]
[1735156245310,0.54508585,704.54,702.61,0.28465293]
[1735156245505,0.26121269,704.53,702.71,1.05824167]
[1735156246109,0.26121269,704.53,702.73,0.28460432]
[1735156246305,0.28388122,704.52,702.73,0.28460432]
[1735156246504,0.26121269,704.51,702.73,0.28460432]
[1735156246711,0.28388928,704.5,702.73,0.28460432]
[1735156249309,0.28388928,704.5,702.73,1.34284599]
[1735156251713,0.28388928,704.5,702.73,0.28460432]
[1735156258720,0.2612556,704.49,702.73,0.28460432]
[1735156260020,0.28390137,704.47,702.73,0.28460432]
[1735156260319,0.26126369,704.46,702.73,0.28460432]
[1735156260513,0.28390943,704.45,702.73,0.28460432]
[1735156260720,0.26126369,704.44,702.73,0.28460432]
[1735156260927,0.28391749,704.43,702.73,0.28460432]
[1735156261116,0.26126369,704.42,702.79,1.05824167]
[1735156261321,0.26126369,704.42,702.8,0.28457598]
[1735156261616,0.28392958,704.4,702.8,0.28457598]
[1735156261821,0.26126369,704.39,702.8,0.28457598]
[1735156262520,0.28393764,704.38,702.8,0.28457598]
[1735156262722,0.26126369,704.37,702.8,0.28457598]
[1735156263025,0.2839457,704.36,702.8,0.28457598]
[1735156263317,0.26128505,704.35,702.8,0.28457598]
[1735156263522,0.28395377,704.34,702.8,0.28457598]
[1735156263723,0.26128505,704.33,702.8,0.28457598]
[1735156263928,0.28396183,704.32,702.8,0.28457598]
[1735156264223,0.26128505,704.31,702.8,0.28457598]
[1735156264521,0.28396989,704.3,702.8,0.28457598]
[1735156264723,0.26128505,704.29,702.8,0.28457598]
[1735156265021,0.28397796,704.28,702.8,0.28457598]
[1735156265321,0.26128505,704.27,702.8,0.28457598]
[1735156265522,0.28398602,704.26,702.8,0.28457598]
[1735156265724,0.26128505,704.25,702.8,0.28457598]
[1735156266425,0.28399409,704.24,702.8,0.28457598]
[1735156266624,0.26131725,704.23,702.8,0.28457598]
[1735156270129,0.28400619,704.21,702.8,0.28457598]
[1735156270428,0.26131725,704.2,702.8,0.28457598]
[1735156271323,0.28401425,704.19,702.8,0.28457598]
[1735156271525,0.26131725,704.18,702.8,0.28457598]
[1735156272021,0.28402232,704.17,702.8,0.28457598]
[1735156272222,0.26131725,704.16,702.8,0.28457598]
[1735156272425,0.28403039,704.15,702.8,0.28457598]
[1735156272626,0.26131725,704.14,702.8,0.28457598]
[1735156272822,0.28403845,704.13,702.8,0.28457598]
[1735156273027,0.26131725,704.12,702.8,0.28457598]
[1735156273224,0.28404652,704.11,702.8,0.28457598]
[1735156273423,0.26131725,704.1,702.8,0.28457598]
[1735156273825,0.28405459,704.09,702.8,0.28457598]
[1735156274025,0.26136464,704.08,702.8,0.28457598]
[1735156274830,0.28405459,704.09,702.8,0.28457598]
[1735156275033,0.26136859,704.08,702.8,0.28457598]
[1735156275530,0.28406266,704.07,702.8,0.28457598]
[1735156275732,0.26136859,704.06,702.8,0.28457598]
[1735156275931,0.28407073,704.05,702.8,0.28457598]
[1735156276126,0.26136859,704.04,702.8,0.28457598]
[1735156276935,0.26136875,704.03,702.8,0.28457598]
[1735156277130,0.28407073,704.05,702.8,0.28457598]
[1735156287040,0.26136703,704.04,702.8,0.28457598]
[1735156287242,0.2840788,704.03,702.8,0.28457598]
[1735156288341,0.2613678,704.02,702.8,0.28457598]
[1735156290747,0.26136583,704.01,702.8,0.28457598]
[1735156290944,0.2840788,704.03,702.8,0.28457598]
[1735156291144,0.26136887,704.02,702.8,0.28457598]
[1735156291547,0.2840788,704.03,702.8,0.28457598]
[1735156291748,0.26137125,704.02,702.8,0.28457598]
[1735156293049,0.2840788,704.03,702.8,0.28457598]
[1735156293251,0.26136903,704.02,702.8,0.28457598]
[1735156293648,0.26137151,704.01,702.8,0.28457598]
[1735156293851,0.2840788,704.03,702.8,0.28457598]
[1735156294045,0.26137151,704.02,702.8,0.28457598]
[1735156295646,0.2840788,704.03,702.8,0.28457598]
[1735156295849,0.26136864,704.02,702.8,0.28457598]
[1735156296045,0.2840788,704.03,702.8,0.28457598]
[1735156297952,0.26137456,704.02,702.8,0.28457598]
[1735156298448,0.2840788,704.03,702.8,0.28457598]
[1735156311165,1.06225505,704.15,702.8,0.28457598]
[1735156311361,1.06225505,704.16,702.8,0.28457598]
[1735156312362,1.06225505,705.08,702.8,0.28457598]
[1735156312559,0.28370001,704.97,702.8,0.28457598]
[1735156312766,0.26121922,704.96,702.8,0.28457598]
[1735156312963,0.28374428,704.86,702.8,0.28457598]
[1735156313269,0.26121922,704.85,702.8,0.28457598]
[1735156313468,0.28375636,704.83,702.8,0.28457598]
[1735156313670,0.26121922,704.82,702.8,0.28457598]
[1735156313969,0.28376844,704.8,702.8,0.28457598]
[1735156314165,0.26121922,704.79,702.8,0.28457598]
[1735156314369,0.28378052,704.77,702.8,0.28457598]
[1735156316366,0.26121106,704.76,702.8,0.28457598]
[1735156316569,0.2837926,704.74,702.8,0.28457598]
[1735156316967,0.2612077,704.73,702.8,0.28457598]
[1735156317167,0.28380468,704.71,702.8,0.28457598]
[1735156317363,0.2612077,704.7,702.8,0.28457598]
[1735156317569,0.28381676,704.68,702.8,0.28457598]
[1735156317769,0.2612077,704.67,702.8,0.28457598]
[1735156318072,0.28382885,704.65,702.8,0.28457598]
[1735156320572,0.2612187,704.64,702.8,0.28457598]
[1735156320773,0.28384093,704.62,702.8,0.28457598]
[1735156320965,0.26121838,704.61,702.8,0.28457598]
[1735156321171,0.28384899,704.6,702.8,0.28457598]
[1735156321371,0.26121838,704.59,702.8,0.28457598]
[1735156321767,0.28385704,704.58,702.8,0.28457598]
[1735156321972,0.26121838,704.57,702.8,0.28457598]
[1735156322165,0.2838651,704.56,702.8,0.28457598]
[1735156322367,0.26121838,704.55,702.8,0.28457598]
[1735156322568,0.28387316,704.54,702.8,0.28457598]
[1735156336077,0.28387316,704.54,702.58,0.28466509]
[1735156336279,0.28387316,704.54,702.61,1.05824167]
[1735156338185,0.28387316,704.54,702.62,1.05824167]
[1735156339177,0.28387316,704.54,702.65,1.05824167]
[1735156339983,0.28387316,704.54,702.65,3.5993393]
[1735156340382,0.28387316,704.54,702.65,1.05824167]
[1735156340785,0.28387316,704.54,702.58,0.28466509]
[1735156342985,0.28387316,704.54,702.61,1.05824167]
[1735156343986,0.28387316,704.54,702.68,1.05824167]
[1735156344687,0.28387316,704.54,702.72,1.05824167]
[1735156346486,0.28387316,704.54,702.83,1.05824167]
[1735156347491,0.28387316,704.54,702.82,1.05824167]
[1735156349292,0.28387316,704.54,702.58,0.28466509]
[1735156349293,0.28387316,704.54,702.84,0.28455978]
[1735156349895,0.28387316,704.54,702.84,1.34280145]
[1735156350995,0.28387316,704.54,703.02,1.05824167]
[1735156351196,0.28387316,704.54,703.03,0.28448288]
[1735156355090,0.28387316,704.54,703.04,1.05824167]
[1735156355696,0.28387316,704.54,703.05,0.28447478]
[1735156356192,0.28387316,704.54,703.05,1.34271645]
[1735156357396,0.28387316,704.54,703.11,1.05824167]
[1735156357997,0.28387316,704.54,703.05,1.34271645]
[1735156358695,0.28387316,704.54,703.06,1.05824167]
[1735156358895,0.28387316,704.54,703.07,0.28446669]
[1735156359599,0.28387316,704.54,703.07,1.34270836]
[1735156361795,0.28387316,704.54,703.13,1.05824167]
[1735156362999,0.28387316,704.54,703.18,1.05824167]
[1735156363899,0.28387316,704.54,703.07,0.28446669]
[1735156363900,0.28387316,704.54,703.2,1.05824167]
[1735156364599,0.28387316,704.54,703.23,1.05824167]
[1735156365601,0.28387316,704.54,703.28,1.05824167]
[1735156367903,0.28387316,704.54,703.17,1.05824167]
[1735156368705,0.28387316,704.54,703.18,1.05824167]
[1735156369703,0.28387316,704.54,703.19,1.05824167]
[1735156372608,0.28387316,704.54,703.2,1.05824167]
[1735156373601,0.28387316,704.54,703.1,1.05824167]
[1735156373799,0.28387316,704.54,703.11,0.28445051]
[1735156383214,0.28387316,704.54,703.17,1.05824167]
[1735156383414,0.28387316,704.54,703.17,1.34266791]
[1735156386414,0.28387316,704.54,703.23,1.05824167]
[1735156388509,0.28387316,704.54,703.25,1.05824167]
[1735156388713,0.28387316,704.54,703.26,0.28438984]
[1735156392017,0.28387316,704.54,703.27,1.05824167]
[1735156392218,0.28387316,704.54,703.28,0.28438175]
[1735156392920,0.28387316,704.54,703.32,1.05824167]
[1735156393115,0.28387316,704.54,703.33,0.28436153]
[1735156419940,0.28387316,704.54,703.34,1.05824167]
[1735156420138,0.28387316,704.54,703.35,0.28435345]
[1735156420846,0.28387316,704.54,703.42,1.05824167]
[1735156421549,0.28387316,704.54,703.43,1.05824167]
[1735156422745,0.28387316,704.54,703.44,1.05824167]
[1735156423247,0.28387316,704.54,703.49,1.05824167]
[1735156424045,0.28387316,704.54,703.51,1.05824167]
[1735156425146,0.28387316,704.54,703.53,1.05824167]
[1735156426047,0.28387316,704.54,703.56,1.05824167]
[1735156427548,0.28387316,704.54,703.55,1.05824167]
[1735156428648,0.28387316,704.54,703.54,1.05824167]
[1735156429641,0.28387316,704.54,703.55,1.05824167]
[1735156433243,0.28387316,704.54,703.56,1.05824167]
[1735156435648,0.28387316,704.54,703.35,0.28435345]
[1735156435649,0.28387316,704.54,703.53,1.05824167]
[1735156437250,0.28387316,704.54,703.52,1.05824167]
[1735156440451,0.28387316,704.54,703.54,1.05824167]
[1735156441650,0.28387316,704.54,703.35,0.28435345]
[1735156443557,0.28387316,704.54,703.36,1.05824167]
[1735156443756,0.28387316,704.54,703.37,0.28434536]
[1735156451959,0.28387316,704.54,703.45,1.05824167]
[1735156453664,0.28387316,704.54,703.44,1.05824167]
[1735156454463,0.28387316,704.54,703.43,1.05824167]
[1735156455567,0.28387316,704.54,703.37,0.28434536]
[1735156455568,0.28387316,704.54,703.47,1.05824167]
[1735156456263,0.28387316,704.54,703.51,1.05824167]
[1735156458966,0.28387316,704.54,703.37,0.28434536]
[1735156468376,0.28387316,704.54,703.49,1.05824167]
[1735156469678,0.28387316,704.54,703.37,0.28434536]
[1735156478689,0.28387316,704.54,703.38,1.05824167]
[1735156478889,0.28387316,704.54,703.39,0.28433728]
[1735156479986,0.28387316,704.54,703.39,1.34257895]
[1735156481993,0.28387316,704.54,703.51,1.05824167]
[1735156482893,0.28387316,704.54,703.52,1.05824167]
[1735156483693,1.06225505,705.01,703.52,1.05824167]
[1735156483892,1.06225505,705.01,703.39,0.28433728]
[1735156483893,0.26105786,705.0,703.53,1.05824167]
[1735156484597,0.28369196,704.99,703.53,1.05824167]
[1735156484798,0.26105786,704.98,703.53,1.05824167]
[1735156485097,0.28370001,704.97,703.53,1.05824167]
[1735156485299,0.26105786,704.96,703.53,1.05824167]
[1735156485498,0.28370806,704.95,703.53,1.05824167]
[1735156485699,0.26106428,704.94,703.52,1.05824167]
[1735156485999,0.54477636,704.94,703.52,1.05824167]
[1735156486199,0.26106428,704.93,703.52,1.05824167]
[1735156486400,0.28371208,704.94,703.52,1.05824167]
[1735156486799,1.34596713,704.94,703.46,1.05824167]
[1735156486991,1.34596713,704.94,703.47,0.28430494]
[1735156487598,0.28371208,704.94,703.47,0.28430494]
[1735156508511,0.26105548,704.93,703.47,0.28430494]
[1735156508812,0.28371208,704.94,703.47,0.28430494]
[1735156509014,0.26105525,704.93,703.47,0.28430494]
[1735156509808,0.28371208,704.94,703.47,0.28430494]
[1735156510212,0.2610571,704.93,703.47,0.28430494]
[1735156511007,0.28371208,704.94,703.47,0.28430494]
[1735156511207,0.26105389,704.93,703.47,0.28430494]
[1735156513413,0.26105343,704.92,703.47,0.28430494]
[1735156513608,0.26105343,704.91,703.47,0.28430494]
[1735156513816,0.28371208,704.94,703.47,0.28430494]
[1735156514013,0.26105462,704.93,703.47,0.28430494]
[1735156514213,0.26105219,704.92,703.47,0.28430494]
[1735156514419,0.26105219,704.91,703.47,0.28430494]
[1735156514612,0.28371208,704.94,703.47,0.28430494]
[1735156514812,0.26105586,704.93,703.47,0.28430494]
[1735156515015,0.28371208,704.94,703.47,0.28430494]
[1735156516609,0.26106054,704.93,703.47,0.28430494]
[1735156517009,0.28371208,704.94,703.47,0.28430494]
[1735156518016,0.26105679,704.93,703.47,0.28430494]
[1735156518511,1.06225505,704.88,703.53,1.05824167]
[1735156518713,0.26105679,704.87,703.53,1.05824167]
[1735156519114,0.26105985,704.86,703.52,1.05824167]
[1735156520017,0.26105985,704.85,703.52,1.05824167]
[1735156520214,0.26105985,704.84,703.52,1.05824167]
[1735156520413,0.26105985,704.83,703.52,1.05824167]
[1735156520615,1.06225505,704.88,703.52,1.05824167]
[1735156520919,0.26106277,704.87,703.52,1.05824167]
[1735156521820,1.32331782,704.87,703.51,1.05824167]
[1735156522119,0.26106277,704.86,703.51,1.34253045]
[1735156522620,1.06225505,704.87,703.51,1.34253045]
[1735156522820,1.06225505,704.86,703.51,1.34253045]
[1735156523815,0.28371208,704.94,703.51,0.28428878]
[1735156530823,0.26108135,704.93,703.51,0.28428878]
[1735156531020,0.28372013,704.92,703.51,0.28428878]
[1735156532619,0.26108198,704.91,703.51,0.28428878]
[1735156532828,0.28372013,704.92,703.51,0.28428878]
[1735156533021,0.26109063,704.91,703.51,0.28428878]
[1735156533324,0.28372818,704.9,703.51,0.28428878]
[1735156534827,0.26108836,704.89,703.51,0.28428878]
[1735156535025,0.28373623,704.88,703.51,0.28428878]
[1735156535828,0.26108538,704.87,703.51,0.28428878]
[1735156536027,0.28374428,704.86,703.51,0.28428878]
[1735156572559,0.28374428,704.86,703.52,1.05824167]
[1735156572760,0.28374428,704.86,703.54,0.28427665]
[1735156574263,0.28374428,704.86,703.55,1.05824167]
[1735156574458,0.28374428,704.86,703.56,0.28426857]
[1735156575259,0.28374428,704.86,703.58,1.05824167]
[1735156575458,0.28374428,704.86,703.59,0.28425645]
[1735156580367,0.28374428,704.86,703.64,1.05824167]
[1735156580568,0.28374428,704.86,703.65,0.28423221]
[1735156581066,0.28374428,704.86,703.65,1.34247388]
[1735156581963,0.28374428,704.86,703.65,0.28423221]
[1735156591575,0.28374428,704.86,703.65,1.34247388]
[1735156592276,0.28374428,704.86,703.78,1.05824167]
[1735156593175,0.28374428,704.86,703.65,0.28423221]
[1735156593176,0.28374428,704.86,703.79,1.05824167]
[1735156598074,0.28374428,704.86,703.77,1.05824167]
[1735156599877,0.28374428,704.86,703.65,0.28423221]
[1735156611580,0.28374428,704.86,702.95,1.05824167]
[1735156611782,0.28374428,704.86,702.97,0.28450716]
[1735156613883,0.26114718,704.85,702.97,0.28450716]
[1735156614383,0.28375636,704.83,702.97,0.28450716]
[1735156614781,0.26115156,704.82,702.97,0.28450716]
[1735156614978,0.28376844,704.8,702.97,0.28450716]
[1735156616885,0.2611664,704.79,702.97,0.28450716]
[1735156617487,0.28376844,704.8,702.97,0.28450716]
[1735156617787,0.26119165,704.79,702.97,0.28450716]
[1735156617979,0.28378052,704.77,702.97,0.28450716]
[1735156625891,0.28378052,704.77,702.97,1.34274883]
[1735156626692,0.28378052,704.77,702.98,1.05824167]
[1735156627294,0.28378052,704.77,703.0,0.28449502]
[1735156627595,0.28378052,704.77,703.0,1.34273669]
[1735156628593,0.28378052,704.77,703.0,0.28449502]
[1735156629399,0.28378052,704.77,703.01,1.05824167]
[1735156629600,0.28378052,704.77,703.03,0.28448288]
[1735156629998,0.28378052,704.77,703.03,1.34272455]
[1735156631002,0.28378052,704.77,703.05,1.05824167]
[1735156631203,0.28378052,704.77,703.07,0.28446669]
[1735156632001,0.28378052,704.77,703.07,4.16195248]
[1735156632201,0.28378052,704.77,703.08,5.33636063]
[1735156632402,0.28378052,704.77,703.1,0.28445455]
[1735156632802,0.28378052,704.77,703.1,5.6166633]
[1735156632997,0.28378052,704.77,703.1,2.83010125]
[1735156633198,0.28378052,704.77,703.1,0.28445455]
[1735156633604,0.28378052,704.77,703.11,1.05824167]
[1735156633799,0.28378052,704.77,703.13,0.28444242]
[1735156635696,0.28378052,704.77,703.26,1.05824167]
[1735156635899,0.28378052,704.77,703.28,0.28438175]
[1735156637304,0.28378052,704.77,703.3,1.05824167]
[1735156637505,0.28378052,704.77,703.32,0.28436558]
[1735156638107,0.28378052,704.77,703.33,1.05824167]
[1735156638309,0.28378052,704.77,703.35,0.28435345]
[1735156639808,0.28378052,704.77,703.37,1.05824167]
[1735156640209,0.28378052,704.77,703.38,0.28434132]
[1735156640708,0.28378052,704.77,703.39,1.05824167]
[1735156640909,0.28378052,704.77,703.4,0.28433323]
[1735156642110,0.28378052,704.77,703.41,1.05824167]
[1735156642505,0.28378052,704.77,703.42,0.28432515]
[1735156646911,0.26107576,704.76,703.42,0.28432515]
[1735156648208,0.28378052,704.77,703.42,0.28432515]
[1735156648514,0.26109696,704.76,703.42,0.28432515]
[1735156654620,0.26110883,704.75,703.42,0.28432515]
[1735156654821,0.26110883,704.74,703.42,0.28432515]
[1735156655021,0.26110883,704.73,703.42,0.28432515]
[1735156655222,0.26110883,704.72,703.42,0.28432515]
[1735156655522,0.26110883,704.71,703.42,0.28432515]
[1735156655722,0.26110883,704.7,703.42,0.28432515]
[1735156655915,0.26110883,704.69,703.42,0.28432515]
[1735156656116,0.26110883,704.68,703.42,0.28432515]
[1735156656322,0.28378052,704.77,703.42,0.28432515]
[1735156656525,0.26111111,704.76,703.42,0.28432515]
[1735156656724,0.26111082,704.75,703.42,0.28432515]
[1735156657024,0.28378455,704.76,703.42,0.28432515]
[1735156657223,0.26110907,704.75,703.42,0.28432515]
[1735156659421,0.28378455,704.76,703.42,0.28432515]
[1735156659621,0.26110769,704.75,703.42,0.28432515]
[1735156661026,0.2837926,704.74,703.42,0.28432515]
[1735156661320,0.26110769,704.73,703.42,0.28432515]
[1735156662125,0.28380065,704.72,703.42,0.28432515]
[1735156662322,0.26113537,704.71,703.42,0.28432515]
[1735156663022,0.54494925,704.7,703.42,0.28432515]
[1735156663225,0.54495328,704.69,703.42,0.28432515]
[1735156663425,0.28381274,704.69,703.42,0.28432515]
[1735156670429,0.28381274,704.69,702.45,1.05824167]
[1735156670833,0.28381274,704.69,702.41,1.05824167]
[1735156671126,0.28381274,704.69,702.52,0.2846894]
[1735156671432,0.26121709,704.68,702.52,0.2846894]
[1735156671731,0.26121709,704.68,702.61,1.05824167]
[1735156672830,0.26121709,704.68,702.57,1.05824167]
[1735156673031,0.26121709,704.68,702.59,0.28466103]
[1735156673226,0.54504919,704.67,702.59,0.28466103]
[1735156673530,0.54505322,704.66,702.59,0.28466103]
[1735156673732,0.2612284,704.65,702.59,1.3429027]
[1735156674028,0.28383287,704.64,702.59,1.3429027]
[1735156674232,0.2612284,704.63,702.59,1.3429027]
[1735156674636,0.2612284,704.63,702.63,1.05824167]
[1735156675428,0.2612284,704.63,702.65,0.28463673]
[1735156675832,0.28383287,704.64,702.65,0.28463673]
[1735156676031,0.26122706,704.63,702.65,0.28463673]
[1735156677634,0.28384093,704.62,702.65,0.28463673]
[1735156677834,0.26122706,704.61,702.65,0.28463673]
[1735156678032,0.28384899,704.6,702.65,0.28463673]
[1735156678237,0.26122706,704.59,702.7,1.05824167]
[1735156678432,0.26122706,704.59,702.72,0.28460837]
[1735156678738,0.2612215,704.58,702.72,0.28460837]
[1735156678938,0.2612215,704.57,702.72,0.28460837]
[1735156679135,0.2612215,704.59,702.72,0.28460837]
[1735156679336,0.2612215,704.58,702.72,0.28460837]
[1735156679640,0.26120883,704.57,702.72,0.28460837]
[1735156679839,0.26120883,704.56,702.77,1.05824167]
[1735156680138,0.26120883,704.55,702.77,1.05824167]
[1735156680332,0.26120883,704.54,702.77,1.05824167]